Workbook

Sheet June 15nc Non-Calculator Found
A1: June 15 Non - Calculator Foundation
B2: q1 | C2: q2 | D2: q3 | E2: q4a/b | F2: q4c | G2: q5 | H2: q6 | I2: q7 | J2: q8 | K2: q9 | L2: q10 | M2: q11 | N2: q12 | O2: q13 | P2: q14 | Q2: q15 | R2: q16a | S2: q16b | T2: q16c | U2: q16d | V2: q17 | W2: q18 | X2: q19 | Y2: q20 | Z2: q21 | AA2: q22 | AB2: q23a/b | AC2: q23c | AD2: q24 | AE2: q25 | AF2: q26 | AG2: q27
B3: Pictograms | C3: Shading Fractions of Rectangles | D3: Reading Scales | E3: Timetables & Distance Tables | F3: Place Value | G3: Angles | H3: Function Machines | I3: Timetables & Distance Tables | J3: Probability | K3: Money Problems | L3: Conversion Graphs | M3: Coordinates | N3: Using a formula and Negatives | O3: Solving Equations | P3: Volume of a Prism | Q3: Averages from Frequency Tables | R3: Symmetry | S3: Loci and Construction | T3: Perimeter, Area & Volume | U3: Tesellation | V3: Substitution | W3: Angles in Triangles & Quadrilaterals | X3: Pie Charts | Y3: Fractions of an Amount | Z3: Volume of a Prism | AA3: Questionnaires | AB3: Expanding and Factorising | AC3: Index Notation | AD3: Easy Percentage + fractions Ao3 Questions | AE3: Scattergraphs | AF3: Worded LCM Questions | AG3: Area AO3 Problems
A4: Max Mark | B4: 3 | C4: 5 | D4: 3 | E4: 2 | F4: 1 | G4: 3 | H4: 2 | I4: 4 | J4: 5 | K4: 6 | L4: 4 | M4: 4 | N4: 4 | O4: 2 | P4: 4 | Q4: 3 | R4: 2 | S4: 2 | T4: 2 | U4: 2 | V4: 3 | W4: 3 | X4: 3 | Y4: 3 | Z4: 3 | AA4: 2 | AB4: 2 | AC4: 2 | AD4: 5 | AE4: 3 | AF4: 3 | AG4: 5
A5: Class Average (%) | B5: =AVERAGE(B9:B40)/B4 -> 0.4523809524 | C5: 0.4785714286 | D5: 0.5238095238 | E5: 0.5714285714 | F5: 0.4642857143 | G5: 0.4047619048 | H5: 0.4642857143 | I5: 0.4821428571 | J5: 0.5571428571 | K5: 0.494047619 | L5: 0.4642857143 | M5: 0.4910714286 | N5: 0.4285714286 | O5: 0.5178571429 | P5: 0.4910714286 | Q5: 0.5119047619 | R5: 0.4642857143 | S5: 0.4285714286 | T5: 0.5 | U5: 0.4821428571 | V5: 0.4285714286 | W5: 0.5357142857 | X5: 0.4285714286 | Y5: 0.5833333333 | Z5: 0.4285714286 | AA5: 0.4464285714 | AB5: 0.3928571429 | AC5: 0.5357142857 | AD5: =AVERAGE(AD9:AD40)/AD4 -> 0.4285714286 | AE5: 0.4404761905 | AF5: 0.4880952381 | AG5: 0.6357142857
A6: Standard Deviation | B6: =IF(COUNT(B9:B36)<2,"",STDEV(B9:B40)/B4) -> 0.3297871332 | C6: 0.2897727626 | D6: 0.2633836712 | E6: 0.3526168237 | F6: 0.5078745002 | G6: 0.3315649743 | H6: 0.3581994951 | I6: 0.2799518099 | J6: 0.3048115039 | K6: 0.2813918334 | L6: 0.2781743201 | M6: 0.2762357995 | N6: 0.3107424119 | O6: 0.3464674336 | P6: 0.343471809 | Q6: 0.3331128018 | R6: 0.3021089891 | S6: 0.3526168237 | T6: 0.4082482905 | U6: 0.3464674336 | V6: 0.3377137227 | W6: 0.438284025 | X6: 0.2375655484 | Y6: 0.2957170263 | Z6: 0.3253000243 | AA6: 0.3686633945 | AB6: 0.3149703942 | AC6: 0.4066250304 | AD6: =IF(COUNT(AD9:AD36)<2,"",STDEV(AD9:AD40)/AD4) -> 0.28134221 | AE6: 0.3277755358 | AF6: 0.3205209604 | AG6: 0.2724569768
B7: q1 | C7: q2 | D7: q3 | E7: q4a/b | F7: q4c | G7: q5 | H7: q6 | I7: q7 | J7: q8 | K7: q9 | L7: q10 | M7: q11 | N7: q12 | O7: q13 | P7: q14 | Q7: q15 | R7: q16a | S7: q16b | T7: q16c | U7: q16d | V7: q17 | W7: q18 | X7: q19 | Y7: q20 | Z7: q21 | AA7: q22 | AB7: q23a/b | AC7: q23c | AD7: q24 | AE7: q25 | AF7: q26 | AG7: q27 | AH7: Total Marks | AI7: Grade
A8: Name
A9: Sample student 1 | B9: =ROUND((RAND()*B$4),0) -> 1 | C9: =ROUND((RAND()*C$4),0) -> 3 | D9: 2 | E9: 1 | F9: 0 | G9: 2 | H9: 1 | I9: 2 | J9: 2 | K9: 2 | L9: 2 | M9: 3 | N9: 2 | O9: 1 | P9: 2 | Q9: 1 | R9: 1 | S9: 1 | T9: 0 | U9: 1 | V9: 1 | W9: 2 | X9: 1 | Y9: 3 | Z9: 2 | AA9: 2 | AB9: 0 | AC9: 1 | AD9: 3 | AE9: 3 | AF9: 0 | AG9: =ROUND((RAND()*AG$4),0) -> 4 | AH9: =IF(AG9="","",SUM(B9:AG9)) -> 52 | AI9: =IF(AH9="","",VLOOKUP(AH9,$AK$12:$AL$28,2)) -> E3
A10: Sample student 2 | B10: =ROUND((RAND()*B$4),0) -> 2 | C10: 2 | D10: 2 | E10: 1 | F10: 0 | G10: 1 | H10: 1 | I10: 0 | J10: 0 | K10: 4 | L10: 1 | M10: 1 | N10: 0 | O10: 2 | P10: 3 | Q10: 3 | R10: 1 | S10: 0 | T10: 2 | U10: 2 | V10: 2 | W10: 1 | X10: 1 | Y10: 3 | Z10: 2 | AA10: 2 | AB10: 1 | AC10: 0 | AD10: 0 | AE10: 0 | AF10: 0 | AG10: =ROUND((RAND()*AG$4),0) -> 2 | AH10: =IF(AG10="","",SUM(B10:AG10)) -> 42 | AI10: F3 | AK10: Grade Boundaries
A11: Sample student 3 | B11: 0 | C11: 0 | D11: 3 | E11: 2 | F11: 1 | G11: 1 | H11: 0 | I11: 2 | J11: 1 | K11: 2 | L11: 3 | M11: 1 | N11: 1 | O11: 2 | P11: 1 | Q11: 3 | R11: 1 | S11: 0 | T11: 2 | U11: 1 | V11: 1 | W11: 3 | X11: 2 | Y11: 1 | Z11: 1 | AA11: 1 | AB11: 1 | AC11: 0 | AD11: 5 | AE11: 1 | AF11: 1 | AG11: 4 | AH11: 48 | AI11: F1
A12: Sample student 4 | B12: 1 | C12: 1 | D12: 2 | E12: 0 | F12: 1 | G12: 1 | H12: 0 | I12: 2 | J12: 1 | K12: 6 | L12: 0 | M12: 3 | N12: 1 | O12: 2 | P12: 4 | Q12: 2 | R12: 0 | S12: 1 | T12: 0 | U12: 1 | V12: 1 | W12: 0 | X12: 1 | Y12: 2 | Z12: 1 | AA12: 2 | AB12: 1 | AC12: 0 | AD12: 2 | AE12: 3 | AF12: 2 | AG12: 2 | AH12: 46 | AI12: F2 | AK12: 0 | AL12: U
A13: Sample student 5 | B13: 1 | C13: 1 | D13: 0 | E13: 1 | F13: 0 | G13: 3 | H13: 1 | I13: 2 | J13: 3 | K13: 2 | L13: 4 | M13: 1 | N13: 1 | O13: 1 | P13: 4 | Q13: 3 | R13: 1 | S13: 0 | T13: 2 | U13: 1 | V13: 2 | W13: 3 | X13: 0 | Y13: 3 | Z13: 1 | AA13: 1 | AB13: 0 | AC13: 1 | AD13: 3 | AE13: 2 | AF13: 1 | AG13: 2 | AH13: 51 | AI13: E3 | AK13: 30 | AL13: G3
A14: Sample student 6 | B14: 1 | C14: 2 | D14: 1 | E14: 2 | F14: 0 | G14: 0 | H14: 1 | I14: 3 | J14: 5 | K14: 1 | L14: 3 | M14: 1 | N14: 3 | O14: 2 | P14: 0 | Q14: 0 | R14: 1 | S14: 2 | T14: 2 | U14: 1 | V14: 2 | W14: 0 | X14: 1 | Y14: 1 | Z14: 0 | AA14: 1 | AB14: 1 | AC14: 2 | AD14: 4 | AE14: 0 | AF14: 0 | AG14: 4 | AH14: 47 | AI14: F1 | AK14: =(AK13+(AK16-AK13)/3) -> 33.33333333 | AL14: G2
A15: Sample student 7 | B15: 0 | C15: 1 | D15: 1 | E15: 2 | F15: 0 | G15: 1 | H15: 1 | I15: 2 | J15: 3 | K15: 3 | L15: 2 | M15: 3 | N15: 2 | O15: 2 | P15: 1 | Q15: 2 | R15: 2 | S15: 1 | T15: 2 | U15: 0 | V15: 0 | W15: 3 | X15: 1 | Y15: 2 | Z15: 1 | AA15: 1 | AB15: 1 | AC15: 2 | AD15: 1 | AE15: 0 | AF15: 1 | AG15: 5 | AH15: 49 | AI15: F1 | AK15: =(AK13+2*(AK16-AK13)/3) -> 36.66666667 | AL15: G1
A16: Sample student 8 | B16: 3 | C16: 2 | D16: 2 | E16: 1 | F16: 0 | G16: 0 | H16: 1 | I16: 2 | J16: 2 | K16: 4 | L16: 1 | M16: 1 | N16: 1 | O16: 0 | P16: 3 | Q16: 1 | R16: 1 | S16: 0 | T16: 2 | U16: 1 | V16: 2 | W16: 2 | X16: 2 | Y16: 1 | Z16: 2 | AA16: 2 | AB16: 1 | AC16: 1 | AD16: 3 | AE16: 3 | AF16: 2 | AG16: 1 | AH16: 50 | AI16: E3 | AK16: 40 | AL16: F3
A17: Sample student 9 | B17: 1 | C17: 4 | D17: 2 | E17: 2 | F17: 1 | G17: 0 | H17: 1 | I17: 1 | J17: 5 | K17: 2 | L17: 2 | M17: 4 | N17: 3 | O17: 1 | P17: 0 | Q17: 3 | R17: =ROUND((RAND()*R$4),0) -> 0 | S17: 1 | T17: 1 | U17: 1 | V17: 2 | W17: 3 | X17: 1 | Y17: 2 | Z17: 1 | AA17: 1 | AB17: 1 | AC17: 1 | AD17: 5 | AE17: 0 | AF17: 2 | AG17: 1 | AH17: 55 | AI17: E2 | AK17: =(AK16+(AK19-AK16)/3) -> 43.33333333 | AL17: F2
A18: Sample student 10 | B18: 1 | C18: 3 | D18: 1 | E18: 0 | F18: 0 | G18: 1 | H18: 1 | I18: 3 | J18: 2 | K18: 6 | L18: 2 | M18: 0 | N18: 3 | O18: 1 | P18: 2 | Q18: 2 | R18: 1 | S18: 0 | T18: 2 | U18: 0 | V18: 0 | W18: 0 | X18: 1 | Y18: 0 | Z18: 1 | AA18: 0 | AB18: 0 | AC18: 1 | AD18: 3 | AE18: 2 | AF18: 1 | AG18: 5 | AH18: 45 | AI18: F2 | AK18: =(AK16+2*(AK19-AK16)/3) -> 46.66666667 | AL18: F1
A19: Sample student 11 | B19: 2 | C19: 3 | D19: 1 | E19: 0 | F19: 1 | G19: 1 | H19: 2 | I19: 3 | J19: 5 | K19: 0 | L19: 3 | M19: 2 | N19: 0 | O19: 2 | P19: 2 | Q19: 1 | R19: 1 | S19: 0 | T19: 1 | U19: 2 | V19: 2 | W19: 3 | X19: 3 | Y19: 2 | Z19: 2 | AA19: 0 | AB19: 1 | AC19: 2 | AD19: 1 | AE19: 0 | AF19: 3 | AG19: 4 | AH19: 55 | AI19: E2 | AK19: 50 | AL19: E3
A20: Sample student 12 | B20: 1 | C20: 4 | D20: 1 | E20: 1 | F20: 0 | G20: 0 | H20: 0 | I20: 0 | J20: 3 | K20: 5 | L20: 2 | M20: 1 | N20: 3 | O20: 1 | P20: 3 | Q20: 2 | R20: 2 | S20: 1 | T20: 1 | U20: 1 | V20: 3 | W20: 0 | X20: 2 | Y20: 2 | Z20: 1 | AA20: 1 | AB20: 2 | AC20: 2 | AD20: 0 | AE20: 1 | AF20: 1 | AG20: 2 | AH20: 49 | AI20: F1 | AK20: =(AK19+(AK22-AK19)/3) -> 53.33333333 | AL20: E2
A21: Sample student 13 | B21: 1 | C21: 0 | D21: 2 | E21: 1 | F21: 1 | G21: 2 | H21: 0 | I21: 3 | J21: 1 | K21: 3 | L21: 1 | M21: 2 | N21: 4 | O21: 1 | P21: 1 | Q21: 2 | R21: 1 | S21: 2 | T21: 0 | U21: 1 | V21: 1 | W21: 3 | X21: 1 | Y21: 3 | Z21: 2 | AA21: 1 | AB21: 1 | AC21: 2 | AD21: 1 | AE21: 2 | AF21: 3 | AG21: 2 | AH21: 51 | AI21: E3 | AK21: =(AK19+2*(AK22-AK19)/3) -> 56.66666667 | AL21: E1
A22: Sample student 14 | B22: 2 | C22: 5 | D22: 1 | E22: 1 | F22: 1 | G22: 1 | H22: 2 | I22: 2 | J22: 4 | K22: 2 | L22: 1 | M22: 4 | N22: 1 | O22: 0 | P22: 3 | Q22: 2 | R22: 2 | S22: 1 | T22: 1 | U22: 0 | V22: 2 | W22: 3 | X22: 0 | Y22: 1 | Z22: 1 | AA22: 0 | AB22: 1 | AC22: 1 | AD22: 0 | AE22: 1 | AF22: 3 | AG22: 5 | AH22: 54 | AI22: E2 | AK22: 60 | AL22: D3
A23: Sample student 15 | B23: 3 | C23: 4 | D23: 0 | E23: 2 | F23: 1 | G23: 0 | H23: 2 | I23: 2 | J23: 4 | K23: 5 | L23: 1 | M23: 2 | N23: 2 | O23: 1 | P23: 2 | Q23: 1 | R23: 2 | S23: 0 | T23: 2 | U23: 1 | V23: 3 | W23: 1 | X23: 0 | Y23: 2 | Z23: 1 | AA23: 2 | AB23: 1 | AC23: 1 | AD23: 2 | AE23: 1 | AF23: 2 | AG23: 2 | AH23: 55 | AI23: E2 | AK23: =(AK22+(AK25-AK22)/3) -> 63.33333333 | AL23: D2
A24: Sample student 16 | B24: 2 | C24: 1 | D24: 1 | E24: 2 | F24: 0 | G24: 2 | H24: 1 | I24: 3 | J24: 0 | K24: 2 | L24: 2 | M24: 2 | N24: 0 | O24: 1 | P24: 0 | Q24: 1 | R24: 0 | S24: 1 | T24: 1 | U24: 2 | V24: 1 | W24: 3 | X24: 2 | Y24: 0 | Z24: 3 | AA24: 0 | AB24: 1 | AC24: 2 | AD24: 1 | AE24: 1 | AF24: 0 | AG24: 1 | AH24: 39 | AI24: G1 | AK24: =(AK22+2*(AK25-AK22)/3) -> 66.66666667 | AL24: D1
A25: Sample student 17 | B25: 1 | C25: 2 | D25: 2 | E25: 1 | F25: 0 | G25: 1 | H25: 1 | I25: 3 | J25: 3 | K25: 2 | L25: 3 | M25: 2 | N25: 3 | O25: 1 | P25: 0 | Q25: 0 | R25: 1 | S25: 1 | T25: 0 | U25: 0 | V25: 1 | W25: 3 | X25: 2 | Y25: 1 | Z25: 3 | AA25: 1 | AB25: 2 | AC25: 0 | AD25: 1 | AE25: 0 | AF25: 3 | AG25: 2 | AH25: 46 | AI25: F2 | AK25: 70 | AL25: C3
A26: Sample student 18 | B26: 3 | C26: 1 | D26: 2 | E26: 2 | F26: 1 | G26: 1 | H26: 1 | I26: 4 | J26: 4 | K26: 3 | L26: 3 | M26: 4 | N26: 1 | O26: 0 | P26: 4 | Q26: 0 | R26: 1 | S26: 1 | T26: 0 | U26: 2 | V26: 1 | W26: 2 | X26: 1 | Y26: 2 | Z26: 1 | AA26: 0 | AB26: 2 | AC26: 2 | AD26: 3 | AE26: 1 | AF26: 2 | AG26: 2 | AH26: 57 | AI26: E1 | AK26: =(AK25+(AK28-AK25)/3) -> 80 | AL26: C2
A27: Sample student 19 | B27: 3 | C27: 3 | D27: 2 | E27: 1 | F27: 0 | G27: 0 | H27: 2 | I27: 0 | J27: 2 | K27: 5 | L27: 2 | M27: 3 | N27: 3 | O27: 1 | P27: 3 | Q27: 2 | R27: 1 | S27: 1 | T27: 2 | U27: 2 | V27: 0 | W27: 2 | X27: 2 | Y27: 2 | Z27: 3 | AA27: 2 | AB27: 1 | AC27: 1 | AD27: 2 | AE27: 1 | AF27: 1 | AG27: 2 | AH27: 57 | AI27: E1 | AK27: =(AK25+2*(AK28-AK25)/3) -> 90 | AL27: C1
A28: Sample student 20 | B28: 1 | C28: 3 | D28: 2 | E28: 1 | F28: 1 | G28: 3 | H28: 1 | I28: 2 | J28: 3 | K28: 4 | L28: 1 | M28: 2 | N28: 1 | O28: 0 | P28: 1 | Q28: 1 | R28: 1 | S28: 2 | T28: 1 | U28: 0 | V28: 1 | W28: 0 | X28: 2 | Y28: 1 | Z28: 3 | AA28: 0 | AB28: 1 | AC28: 0 | AD28: 2 | AE28: 2 | AF28: 1 | AG28: 4 | AH28: 48 | AI28: F1 | AK28: 100 | AL28: C1
A29: Sample student 21 | B29: 1 | C29: 3 | D29: 0 | E29: 1 | F29: 0 | G29: 3 | H29: 1 | I29: 4 | J29: 0 | K29: 5 | L29: 0 | M29: 1 | N29: 2 | O29: 2 | P29: 3 | Q29: 2 | R29: 1 | S29: 0 | T29: 0 | U29: 1 | V29: 0 | W29: 0 | X29: 1 | Y29: 1 | Z29: 0 | AA29: 0 | AB29: 0 | AC29: 2 | AD29: 1 | AE29: 2 | AF29: 2 | AG29: 4 | AH29: 43 | AI29: F3
A30: Sample student 22 | B30: 1 | C30: 1 | D30: 2 | E30: 1 | F30: 0 | G30: 2 | H30: 2 | I30: 2 | J30: 2 | K30: 1 | L30: 2 | M30: 1 | N30: 0 | O30: 0 | P30: 2 | Q30: 0 | R30: 1 | S30: 1 | T30: 0 | U30: 1 | V30: 3 | W30: 1 | X30: 2 | Y30: 3 | Z30: 1 | AA30: 1 | AB30: 0 | AC30: 2 | AD30: 1 | AE30: 2 | AF30: 1 | AG30: 4 | AH30: 43 | AI30: F3
A31: Sample student 23 | B31: 0 | C31: 3 | D31: 2 | E31: 1 | F31: 0 | G31: 1 | H31: 0 | I31: 0 | J31: 4 | K31: 3 | L31: 4 | M31: 3 | N31: 4 | O31: 0 | P31: 0 | Q31: 1 | R31: 1 | S31: 2 | T31: 1 | U31: 0 | V31: 0 | W31: 1 | X31: 1 | Y31: 3 | Z31: 0 | AA31: 1 | AB31: 1 | AC31: 0 | AD31: 2 | AE31: 1 | AF31: 1 | AG31: 5 | AH31: 46 | AI31: F2
A32: Sample student 24 | B32: 0 | C32: 5 | D32: 2 | E32: 1 | F32: 1 | G32: 1 | H32: 1 | I32: 2 | J32: 4 | K32: 3 | L32: 1 | M32: 2 | N32: 1 | O32: 1 | P32: 2 | Q32: 2 | R32: 0 | S32: 1 | T32: 1 | U32: 1 | V32: 1 | W32: 0 | X32: 1 | Y32: 1 | Z32: 0 | AA32: 0 | AB32: 0 | AC32: 2 | AD32: 3 | AE32: 3 | AF32: 1 | AG32: 4 | AH32: 48 | AI32: F1
A33: Sample student 25 | B33: 3 | C33: 4 | D33: 3 | E33: 2 | F33: 0 | G33: 0 | H33: 2 | I33: =ROUND((RAND()*I$4),0) -> 1 | J33: 4 | K33: 1 | L33: 1 | M33: 1 | N33: 0 | O33: 1 | P33: 2 | Q33: 3 | R33: 1 | S33: 1 | T33: 0 | U33: 1 | V33: 0 | W33: 0 | X33: 1 | Y33: 2 | Z33: 1 | AA33: 0 | AB33: 0 | AC33: 1 | AD33: 1 | AE33: 2 | AF33: 2 | AG33: 3 | AH33: 44 | AI33: F2
A34: Sample student 26 | B34: =ROUND((RAND()*B$4),0) -> 2 | C34: 3 | D34: 1 | E34: 0 | F34: 1 | G34: 2 | H34: 0 | I34: 1 | J34: 4 | K34: 1 | L34: 2 | M34: 1 | N34: 3 | O34: 1 | P34: 3 | Q34: 1 | R34: 0 | S34: 2 | T34: 1 | U34: 1 | V34: 0 | W34: 3 | X34: 1 | Y34: 2 | Z34: 0 | AA34: 1 | AB34: 0 | AC34: 1 | AD34: 3 | AE34: 1 | AF34: =ROUND((RAND()*AF$4),0) -> 1 | AG34: 5 | AH34: 48 | AI34: F1
A35: Sample student 27 | B35: 1 | C35: 3 | D35: 2 | E35: 2 | F35: 1 | G35: 1 | H35: 0 | I35: 1 | J35: 3 | K35: 1 | L35: 3 | M35: 1 | N35: 1 | O35: 1 | P35: 0 | Q35: 0 | R35: 0 | S35: 1 | T35: 1 | U35: 2 | V35: 3 | W35: 0 | X35: 1 | Y35: 1 | Z35: 0 | AA35: 1 | AB35: 1 | AC35: 0 | AD35: 3 | AE35: 1 | AF35: 3 | AG35: 4 | AH35: 43 | AI35: F3
A36: Sample student 28 | B36: 0 | C36: 0 | D36: 2 | E36: 0 | F36: 1 | G36: 3 | H36: 0 | I36: 2 | J36: 4 | K36: 5 | L36: 0 | M36: 3 | N36: 2 | O36: 1 | P36: 4 | Q36: 2 | R36: 1 | S36: 0 | T36: 0 | U36: 0 | V36: 1 | W36: 3 | X36: 2 | Y36: 2 | Z36: 2 | AA36: 1 | AB36: 0 | AC36: 0 | AD36: 4 | AE36: 1 | AF36: 1 | AG36: 4 | AH36: 51 | AI36: E3
